bitfinex-derivatives/quotes_ETHF0:USTF0_20250430
["timestamp","ask_amount","ask_price","bid_price","bid_amount"]
[1746028900840,8.08989,1763.5,1763.4,1.13411]
[1746028901242,6.9558,1763.5,1763.3,1.41654]
[1746028901434,3.2078,1763.4,1763.3,0.2824]
[1746028901633,3.748,1763.5,1763.3,0.2824]
[1746028901833,3.748,1763.5,1763.4,2.76181]
[1746028903230,3.748,1763.5,1763.4,6.58981]
[1746028903734,3.748,1763.5,1763.4,7.39461]
[1746028904944,3.748,1763.5,1763.4,6.58981]
[1746028905147,3.748,1763.5,1763.4,2.76181]
[1746028906139,3.748,1763.5,1763.4,6.58981]
[1746028913345,4.88205,1763.5,1763.4,6.58981]
[1746028914134,1.13411,1763.4,1763.3,0.2824]
[1746028914339,2.80761,1763.4,1763.3,1.41654]
[1746028914537,7.80761,1763.4,1763.3,0.2824]
[1746028914841,8.26890939,1763.4,1763.3,0.2824]
[1746028915641,3.26890939,1763.4,1763.3,0.2824]
[1746028916349,7.01490939,1763.4,1763.3,1.41658]
[1746028916648,7.01490939,1763.4,1763.3,0.2824]
[1746028916949,12.01490939,1763.4,1763.3,0.2824]
[1746028917543,1.13437,1763.0,1762.9,1.6687]
[1746028917744,4.88037,1763.0,1762.9,2.80309]
[1746028918553,4.88037,1763.0,1762.9,1.13439]
[1746028918849,3.746,1763.0,1762.9,1.13439]
[1746028921149,73.2108,1763.5,1763.2,2.83548]
[1746028921350,3.746,1763.4,1763.3,3.68388]
[1746028921652,3.746,1763.4,1763.3,4.53038]
[1746028922150,1.13418,1763.3,1763.2,1.13419]
[1746028922351,2.4436,1763.3,1763.2,1.13424]
[1746028922942,3.57778,1763.3,1763.2,1.13424]
[1746028923455,3.57783,1763.3,1763.2,1.13424]
[1746028923750,3.746,1763.4,1763.3,1.13418]
[1746028924446,3.746,1763.4,1763.3,2.87708]
[1746028925056,3.746,1763.4,1763.3,3.68018]
[1746028925251,3.746,1763.4,1763.3,7.50818]
[1746028925750,70.003,1763.5,1763.4,1.13411]
[1746028925946,73.749,1763.5,1763.4,2.87701]
[1746028926140,73.749,1763.5,1763.4,6.70501]
[1746028927146,73.749,1763.5,1763.4,2.87701]
[1746028928654,76.62505,1763.5,1763.4,2.87701]
[1746028929055,75.491,1763.5,1763.4,2.87701]
[1746028930547,76.62505,1763.5,1763.4,2.87701]
[1746028930742,75.491,1763.5,1763.4,2.87701]
[1746028931143,76.62505,1763.5,1763.4,2.87701]
[1746028931447,76.62505,1763.5,1763.4,1.13411]
[1746028932049,79.83285,1763.5,1763.4,1.13411]
[1746028932255,78.6988,1763.5,1763.4,1.13411]
[1746028932558,79.83285,1763.5,1763.4,1.13411]
[1746028933256,79.83285,1763.5,1763.4,4.96211]
[1746028933651,79.83285,1763.5,1763.4,3.828]
[1746028933958,79.83285,1763.5,1763.4,4.96211]
[1746028934263,1.13411,1763.4,1763.3,2.78023]
[1746028934555,3.62281,1763.4,1763.3,2.78023]
[1746028934954,2.4887,1763.4,1763.3,2.78023]
[1746028935554,0.8437,1763.4,1763.3,2.78023]
[1746028935760,73.749,1763.5,1763.4,1.13411]
[1746028935956,73.749,1763.5,1763.4,2.80941]
[1746028936259,74.88305,1763.5,1763.4,4.96211]
[1746028936456,80.58095,1763.5,1763.4,3.828]
[1746028937355,1.13418,1763.3,1763.2,2.80952]
[1746028937958,1.13418,1763.3,1763.2,1.13422]
[1746028938162,1.97188,1763.3,1763.2,1.13422]
[1746028938664,1.13424,1763.2,1763.1,6.84626]
[1746028938853,3.746,1763.2,1763.1,6.84626]
[1746028939253,74.0321,1763.5,1763.1,6.84626]
[1746028939254,74.0485,1763.5,1763.4,1.13411]
[1746028939462,78.92855,1763.5,1763.4,1.13411]
[1746028940160,78.92855,1763.5,1763.4,4.96211]
[1746028940362,78.92855,1763.5,1763.4,5.79711]
[1746028941155,78.92855,1763.5,1763.4,3.828]
[1746028941355,78.92855,1763.5,1763.4,4.96211]
[1746028941558,78.92855,1763.5,1763.4,3.828]
[1746028942449,1.13411,1763.4,1763.3,1.6891]
[1746028942653,77.4757,1763.5,1763.4,1.13411]
[1746028943154,1.13411,1763.4,1763.3,2.82322]
[1746028943551,1.13411,1763.4,1763.3,1.6891]
[1746028943765,2.88901,1763.4,1763.3,1.6891]
[1746028944067,1.13424,1763.2,1763.1,1.99935]
[1746028944258,4.59024,1763.4,1763.2,1.13424]
[1746028944259,1.7549,1763.3,1763.2,1.13424]
[1746028944459,6.6311,1763.3,1763.2,2.81854]
[1746028945064,6.6311,1763.3,1763.2,1.6843]
[1746028945457,1.1343,1763.1,1763.0,3.828]
[1746028945762,2.85209,1763.2,1763.1,1.1343]
[1746028945962,2.85209,1763.2,1763.1,1.6843]
[1746028947465,1.13437,1763.0,1762.9,2.8532]
[1746028947766,3.71316,1763.1,1763.0,1.6619]
[1746028948056,7.45516,1763.1,1763.0,2.79627]
[1746028948263,7.45516,1763.1,1763.0,1.6619]
[1746028948965,7.45516,1763.1,1763.0,2.79627]
[1746028949264,7.45516,1763.1,1763.0,1.6619]
[1746028949862,10.66296,1763.1,1763.0,1.6619]
[1746028950369,10.66296,1763.1,1763.0,2.79627]
[1746028950565,10.66296,1763.1,1763.0,1.6619]
[1746028951065,10.66296,1763.1,1763.0,2.79627]
[1746028951268,7.7722,1763.1,1763.0,2.79627]
[1746028951661,8.9065,1763.1,1763.0,2.79627]
[1746028952064,6.9498,1763.1,1763.0,2.79627]
[1746028952368,3.742,1763.1,1763.0,6.62427]
[1746028952759,3.742,1763.1,1763.0,9.83207]
[1746028953565,3.742,1763.1,1763.0,6.62427]
[1746028955966,3.742,1763.1,1763.0,9.83207]
[1746028957864,71.13709,1763.5,1763.4,1.13411]
[1746028958168,74.88009,1763.5,1763.4,1.13411]
[1746028958766,74.88009,1763.5,1763.4,2.89121]
[1746028959174,73.746,1763.5,1763.4,2.89121]
[1746028959472,3.2078,1763.8,1763.7,1.13392]
[1746028959663,6.9508,1763.8,1763.7,1.13392]
[1746028959863,3.743,1763.8,1763.7,1.13392]
[1746028960271,3.743,1763.8,1763.7,7.50572]
[1746028960462,3.743,1763.8,1763.7,10.71352]
[1746028960663,13.24718475,1763.9,1763.8,1.13385]
[1746028960967,13.24718475,1763.9,1763.8,2.86815]
[1746028961158,13.24718475,1763.9,1763.8,11.69615]
[1746028961565,3.742,1764.0,1763.9,1.13379]
[1746028961766,3.742,1764.0,1763.9,6.07589]
[1746028962380,3.742,1764.3,1764.2,1.13355]
[1746028963076,3.742,1764.3,1764.2,3.69695]
[1746028963269,3.742,1764.3,1764.2,7.52495]
[1746028967873,4.87553,1764.3,1764.2,7.52495]
[1746028968178,3.742,1764.3,1764.2,7.52495]
[1746028972082,3.741,1764.5,1764.4,1.13347]
[1746028973277,3.741,1764.5,1764.4,4.96147]
[1746028973474,2.86895,1764.8,1764.7,1.13328]
[1746028973680,3.737,1764.8,1764.7,1.13328]
[1746028974074,4.87021,1764.8,1764.7,1.13328]
[1746028974474,6.60591,1764.8,1764.7,1.13328]
[1746028974674,1.13338,1764.6,1764.5,1.13334]
[1746028974880,1.13347,1764.5,1764.4,1.13342]
[1746028975075,1.13347,1764.5,1764.1,1.7045]
[1746028975076,6.2488,1764.5,1764.1,1.7045]
[1746028975280,4.34132,1764.4,1764.3,1.13353]
[1746028975478,6.82282,1764.4,1764.3,1.13353]
[1746028975979,1.6256,1764.4,1764.3,1.13353]
[1746028976180,4.6232,1764.5,1764.4,1.13347]
[1746028976583,5.7566,1764.5,1764.4,1.13347]
[1746028977079,7.3822,1764.5,1764.4,1.13347]
[1746028977479,4.6232,1764.5,1764.4,1.13347]
[1746028977782,3.737,1764.5,1764.4,1.13347]
[1746028978183,3.737,1764.5,1764.4,4.96147]
[1746028979780,3.737,1764.8,1764.6,1.13334]
[1746028979979,3.737,1764.8,1764.7,1.13328]
[1746028981179,3.737,1764.8,1764.7,4.96128]
[1746028981387,4.87021,1764.8,1764.7,4.96128]
[1746028981586,6.53251,1764.8,1764.7,4.96128]
[1746028981787,5.3993,1764.8,1764.7,4.96128]
[1746028982087,5.3993,1764.8,1764.7,1.13328]
[1746028983584,6.53251,1764.8,1764.7,1.13328]
[1746028984185,7.38181,1764.8,1764.7,1.13328]
[1746028984789,1.1333,1764.7,1764.6,1.13329]
[1746028984990,3.7345,1764.7,1764.6,1.13329]
[1746028985394,1.13336,1764.6,1764.5,1.13335]
[1746028985689,1.13343,1764.5,1764.4,1.13342]
[1746028986090,4.86943,1764.5,1764.4,1.13342]
[1746028986891,8.07723,1764.5,1764.4,1.13342]
[1746028987088,8.07723,1764.5,1764.2,6.04176]
[1746028987089,1.13353,1764.3,1764.2,1.13353]
[1746028987286,2.75852,1764.4,1764.3,1.13353]
[1746028987589,3.736,1764.5,1764.4,1.13347]
[1746028988292,3.736,1764.5,1764.4,4.96147]
[1746028989090,3.736,1764.5,1764.4,8.16927]
[1746028989289,3.736,1764.6,1764.5,1.1334]
[1746028989587,3.2078,1764.8,1764.7,1.13328]
[1746028989785,4.5423,1764.9,1764.8,1.13321]
[1746028989988,4.5423,1764.9,1764.8,41.93321]
[1746028991894,5.67545,1764.9,1764.8,41.93321]
[1746028992082,6.3066,1764.9,1764.8,45.76121]
[1746028992488,6.3066,1764.9,1764.8,46.58731]
[1746028992894,3.2078,1765.3,1765.2,1.13295]
[1746028993192,9.70029,1765.3,1765.2,4.96095]
[1746028993388,8.5674,1765.3,1765.2,4.96095]
[1746028994197,9.70029,1765.3,1765.2,3.828]
[1746028994393,14.70029,1765.3,1765.2,3.828]
[1746028994593,2.83269,1765.1,1764.6,3.2078]
[1746028994890,1.13322,1764.8,1764.7,1.13323]
[1746028995096,1.13336,1764.6,1764.5,41.93336]
[1746028995280,6.9438,1764.6,1764.2,2.5421]
[1746028995485,3.57434,1764.5,1764.4,1.13345]
[1746028995681,3.57434,1764.5,1764.3,43.65498]
[1746028995885,1.6236,1764.4,1764.3,43.65498]
[1746028996297,2.75707,1764.4,1764.3,43.65498]
[1746028996893,1.6236,1764.4,1764.3,43.65498]
[1746028997594,2.75707,1764.4,1764.3,43.65498]
[1746028997997,1.13353,1764.3,1764.2,1.13354]
[1746028998199,6.58133,1764.3,1764.2,1.13354]
[1746028998396,1.1336,1764.2,1764.1,4.9589]
[1746028998695,1.7118,1764.2,1764.1,6.09256]
[1746028999394,1.7118,1764.2,1764.1,3.2078]
[1746028999595,1.7118,1764.2,1763.4,7.55915421]
[1746028999596,1.13373,1764.0,1763.6,2.83494]
[1746028999889,5.4269,1763.9,1763.8,1.13385]
[1746029000095,6.56072,1763.9,1763.8,1.13385]
[1746029000493,3.736,1763.9,1763.8,1.13385]
[1746029000689,3.736,1763.9,1763.8,6.13385]
[1746029001093,3.736,1763.9,1763.8,4.96185]
[1746029002596,3.736,1763.9,1763.8,45.76185]
[1746029003001,4.34131,1764.4,1764.3,1.13353]
[1746029003196,8.07831,1764.4,1764.3,1.13353]
[1746029003599,0.8173,1764.5,1764.4,1.13347]
[1746029003801,3.734,1764.5,1764.4,1.13347]
[1746029003995,4.8674,1764.5,1764.4,1.13347]
[1746029004305,4.8674,1764.5,1764.4,4.96147]
[1746029005403,3.734,1764.5,1764.4,4.96147]
[1746029005900,8.0752,1764.5,1764.4,4.96147]
[1746029006095,3.734,1764.5,1764.4,4.96147]
[1746029006302,3.734,1764.5,1764.4,1.13347]
[1746029007805,8.0752,1764.5,1764.4,1.13347]
[1746029008306,7.562,1764.5,1764.4,1.13347]
[1746029008807,10.423,1764.5,1764.4,1.13347]
[1746029009107,9.2896,1764.5,1764.4,1.13347]
[1746029009302,10.423,1764.5,1764.4,1.13347]
[1746029009508,1.13347,1764.4,1764.3,2.77899]
[1746029009701,4.50347,1764.4,1764.3,1.13349]
[1746029009908,1.13361,1764.2,1764.1,1.13363]
[1746029010108,4.86761,1764.2,1764.1,1.13366]
[1746029010605,6.59521,1764.2,1764.1,1.6455]
[1746029010805,1.13373,1764.0,1763.9,1.99935]
[1746029011205,4.96173,1764.0,1763.9,0.8656]
[1746029011404,1.13385,1763.8,1763.6,7.55915421]
[1746029011610,0.8353,1763.9,1763.8,1.13385]
[1746029011805,5.70309,1763.9,1763.8,1.13385]
[1746029012011,6.2176,1763.9,1763.8,1.13385]
[1746029012313,11.17939,1763.9,1763.8,1.13385]
[1746029012709,11.17939,1763.9,1763.7,42.5544]
[1746029012710,1.13385,1763.8,1763.7,43.68827]
[1746029013013,11.17944,1763.9,1763.8,1.13385]
[1746029013316,1.13385,1763.8,1763.7,43.68829]
[1746029013514,2.78215,1763.8,1763.7,43.68829]
[1746029013713,1.6483,1763.8,1763.4,7.75846]
[1746029013907,2.78224,1763.7,1763.6,1.13395]
[1746029014707,2.78224,1763.7,1763.6,2.74565]
[1746029015109,6.61024,1763.7,1763.6,2.74565]
[1746029015309,6.61024,1763.7,1763.6,1.6117]
[1746029015518,1.13399,1763.6,1763.5,1.13401]
[1746029015813,6.57992,1763.6,1763.5,1.13405]
[1746029016010,6.57992,1763.6,1763.5,2.74575]
[1746029016216,10.40792,1763.6,1763.5,1.6117]
[1746029016419,10.40792,1763.6,1763.5,1.13405]
[1746029016715,10.40792,1763.6,1763.5,2.74575]
[1746029016916,9.2739,1763.6,1763.5,1.6117]
[1746029017117,10.40788,1763.6,1763.5,2.74575]
[1746029018216,9.2739,1763.6,1763.5,2.74575]
[1746029018617,7.562,1763.6,1763.5,2.74575]
[1746029019017,8.69598,1763.6,1763.5,2.74575]
[1746029019221,4.86798,1763.6,1763.5,2.74575]
[1746029019614,4.86798,1763.6,1763.5,1.6117]
[1746029019816,6.64158,1763.6,1763.5,1.6117]
[1746029020223,10.46958,1763.6,1763.5,2.74575]
[1746029021023,10.46958,1763.6,1763.5,1.6117]
[1746029021624,9.3356,1763.6,1763.2,41.6449]
[1746029021824,1.13415,1763.4,1763.3,2.82756]
[1746029022125,1.13415,1763.4,1763.3,2.82758]
[1746029022324,2.84715,1763.4,1763.3,2.82758]
[1746029022716,2.0024,1763.5,1763.4,1.13411]
[1746029022919,8.69603,1763.6,1763.5,1.13405]
[1746029023119,8.69603,1763.6,1763.5,2.02075]
[1746029023423,8.69603,1763.6,1763.5,0.8867]
[1746029023624,1.13405,1763.5,1763.4,1.6934]
[1746029023823,2.76515,1763.5,1763.4,1.6934]
[1746029024123,6.59315,1763.5,1763.4,1.6934]
[1746029025526,6.59315,1763.5,1763.4,2.82751]
[1746029025726,1.13418,1763.3,1763.2,42.8209]
[1746029025918,1.13418,1763.3,1763.0,6.04369]
[1746029025919,6.9428,1763.3,1763.0,1.13435]
[1746029026120,1.1343,1763.1,1763.0,1.13435]
[1746029026519,4.34215,1763.1,1763.0,1.13437]
[1746029027222,8.17015,1763.1,1763.0,1.13437]
[1746029028320,1.13437,1763.0,1762.9,2.75589]
[1746029028523,4.86937,1763.0,1762.9,2.75589]
[1746029029024,3.735,1763.0,1762.9,2.75589]
[1746029031528,2.78037,1763.4,1763.3,1.13418]
[1746029031529,4.43597,1763.4,1763.3,1.13418]
[1746029031731,3.736,1763.4,1763.3,1.13418]
[1746029031933,4.87011,1763.4,1763.3,1.13418]
[1746029032133,6.52571,1763.4,1763.3,2.75118]
[1746029034533,6.52571,1763.4,1763.3,1.13418]
[1746029035230,10.35371,1763.4,1763.3,2.81778]
[1746029036732,7.564,1763.4,1763.3,2.81778]
[1746029036932,8.69811,1763.4,1763.3,2.81778]
[1746029037133,3.736,1763.4,1763.3,2.81778]
[1746029037335,4.87011,1763.4,1763.3,2.81778]
[1746029037633,3.736,1763.4,1763.3,2.81778]
[1746029037937,4.34189,1763.5,1763.4,1.13411]
[1746029037938,3.2078,1763.5,1763.4,1.13411]
[1746029038232,3.2078,1763.5,1763.4,2.77871]
[1746029038233,6.9418,1763.5,1763.4,2.77871]
[1746029038931,8.07585,1763.5,1763.4,2.77871]
[1746029039132,4.86805,1763.5,1763.4,2.77871]
[1746029039335,4.86805,1763.5,1763.4,1.6446]
[1746029039534,8.07585,1763.5,1763.4,1.6446]
[1746029040138,11.90385,1763.5,1763.4,1.6446]
[1746029041231,11.90385,1763.5,1763.4,2.77871]
[1746029041637,11.90385,1763.5,1763.4,1.6446]
[1746029042739,10.7698,1763.5,1763.2,2.8791]
[1746029042937,1.13418,1763.3,1763.2,1.6386]
[1746029043241,4.96218,1763.3,1763.2,2.77284]
[1746029043437,4.6976,1763.3,1763.2,2.77284]
[1746029043739,3.828,1763.3,1763.2,2.77284]
[1746029043935,7.563,1763.3,1763.2,7.77284]
[1746029044135,3.735,1763.3,1763.2,10.98064]
[1746029044531,3.735,1763.3,1763.2,7.77284]
[1746029044733,3.735,1763.3,1763.2,5.98064]
[1746029045842,4.86918,1763.3,1763.2,5.98064]
[1746029046845,4.86918,1763.3,1763.2,1.6386]
[1746029047045,4.86918,1763.3,1763.2,2.77284]
[1746029047247,8.69718,1763.3,1763.2,2.77284]
[1746029047449,10.3986,1763.3,1763.0,5.18232]
[1746029047640,2.76454,1763.2,1763.1,2.8204]
[1746029047940,2.76454,1763.2,1763.1,1.6861]
[1746029048547,1.13424,1763.2,1763.1,2.8204]
[1746029048943,4.86922,1763.3,1763.2,1.13424]
[1746029049142,8.69722,1763.3,1763.2,2.82034]
[1746029049547,7.563,1763.3,1763.2,2.82034]
[1746029050146,3.735,1763.3,1763.2,2.82034]
[1746029051742,75.8482,1763.8,1763.4,2.83519]
[1746029051944,4.86898,1763.7,1763.6,1.13392]
[1746029052144,8.69698,1763.7,1763.6,1.13392]
[1746029052350,8.69698,1763.7,1763.6,2.86402]
[1746029052754,7.563,1763.7,1763.6,2.86402]
[1746029053146,3.735,1763.7,1763.6,2.86402]
[1746029055852,4.86892,1763.7,1763.6,2.86402]
[1746029056145,6.55482,1763.7,1763.6,2.86402]
[1746029056547,5.4209,1763.7,1763.6,2.86402]
[1746029056858,3.735,1763.7,1763.6,2.86402]
[1746029057257,3.734,1763.8,1763.7,1.13392]
[1746029057450,3.2078,1764.0,1763.9,1.13379]
[1746029057647,0.8579,1764.2,1763.8,3.668]
[1746029057849,3.734,1764.2,1764.1,1.13366]
[1746029058250,3.734,1764.2,1764.1,44.46996]
[1746029062547,3.734,1764.2,1764.1,3.66996]
[1746029064771,3.734,1764.2,1764.1,6.87776]
[1746029065258,6.9398,1764.5,1764.1,5.7441]
[1746029065451,3.732,1764.5,1764.4,4.34127]
[1746029065856,4.5818,1764.9,1764.8,1.13321]
[1746029066164,18.11216475,1765.2,1765.1,1.13302]
[1746029066463,18.73798475,1765.2,1765.1,1.13302]
[1746029066654,19.87093475,1765.2,1765.1,1.13302]
[1746029067054,1.13302,1765.1,1765.0,1.6513]
[1746029067260,2.89182,1765.1,1765.0,1.13308]
[1746029067462,2.89182,1765.1,1765.0,2.78438]
[1746029067761,6.09962,1765.1,1765.0,1.13308]
[1746029068063,6.09967,1765.1,1765.0,1.13308]
[1746029068258,9.92767,1765.1,1765.0,1.13308]
[1746029069454,16.62715,1765.1,1764.4,6.0414]
[1746029069668,1.13325,1764.8,1764.7,1.13326]
[1746029069857,1.1333,1764.7,1764.6,1.13331]
[1746029070057,2.5302,1764.7,1764.6,1.13331]
[1746029070358,3.66351,1764.7,1764.6,1.13334]
[1746029070558,2.5302,1764.7,1764.6,1.13334]
[1746029070859,3.66348,1764.7,1764.5,2.79245]
[1746029071057,1.7189,1764.6,1764.5,2.79245]
[1746029071363,2.85224,1764.6,1764.5,1.13335]
[1746029071965,1.1334,1764.5,1764.4,2.79252]
[1746029072266,7.559,1764.5,1764.4,2.79257]
[1746029073257,3.731,1764.5,1764.4,2.79257]
[1746029076166,4.8644,1764.5,1764.4,2.79257]
[1746029077158,8.6924,1764.5,1764.4,2.79257]
[1746029079060,7.559,1764.5,1764.4,2.79257]
[1746029080168,3.731,1764.5,1764.4,2.79257]
[1746029081063,7.559,1764.5,1764.4,2.79257]
[1746029082372,2.52684,1764.5,1764.4,2.79257]
[1746029082569,2.52684,1764.5,1764.4,7.79257]
[1746029082769,2.52684,1764.5,1764.4,2.79257]
[1746029083064,3.731,1764.7,1764.4,6.62057]
[1746029083259,3.731,1764.7,1764.6,1.13334]
[1746029083771,3.731,1764.7,1764.6,2.77714]
[1746029084266,4.86428,1764.7,1764.6,1.6438]
[1746029084671,1.13334,1764.6,1764.5,1.98738]
[1746029084871,1.13334,1764.6,1764.5,1.13338]
[1746029085374,3.828,1764.6,1764.5,1.13338]
[1746029085567,3.828,1764.6,1764.5,4.34118]
[1746029086066,2.61522,1764.6,1764.5,4.34118]
[1746029086270,3.731,1764.7,1764.6,1.13334]
[1746029086463,3.731,1764.7,1764.6,3.63164]
[1746029087280,2.55645,1764.7,1764.6,3.63164]
[1746029090075,1.97853,1765.1,1765.0,1.13308]
[1746029090076,0.8455,1765.1,1765.0,1.13308]
[1746029090375,5.70852,1765.1,1765.0,1.13308]
[1746029090572,10.70852,1765.1,1765.0,1.13308]
[1746029090776,5.70852,1765.1,1765.0,1.13308]
[1746029091078,4.5755,1765.1,1765.0,1.13308]
[1746029091371,10.1425,1765.1,1765.0,1.13308]
[1746029091578,0.44720391,1765.9,1765.1,2.83255]
[1746029091874,1.739,1765.9,1765.8,1.13257]
[1746029092067,1.739,1765.9,1765.8,41.93257]
[1746029093272,5.567,1765.9,1765.8,41.93257]
[1746029093979,9.297,1765.9,1765.8,41.93257]
[1746029095875,3.828,1765.9,1765.8,43.68277]
[1746029096270,2.58708,1765.9,1765.8,43.68277]
[1746029096671,1.36766,1765.9,1765.8,43.68277]
[1746029096866,1.6916,1766.3,1765.9,1.13251]
[1746029097078,6.9358,1766.5,1766.4,1.13218]
[1746029097378,3.728,1766.5,1766.4,1.13218]
[1746029097580,5.4196,1766.5,1766.4,1.13218]
[1746029098266,9.2476,1766.5,1766.4,1.13218]
[1746029099179,13.58752,1766.5,1766.3,1.13219]
[1746029099479,1.6916,1766.4,1766.3,1.13225]
[1746029100273,5.5196,1766.4,1766.3,1.13225]
[1746029103176,5.5196,1766.4,1766.2,1.13225]
[1746029103385,5.8107,1766.3,1765.9,1.7017]
[1746029103680,6.3032,1766.2,1766.1,1.13238]
[1746029103875,7.43557,1766.2,1766.1,1.13238]
[1746029104071,11.26357,1766.2,1766.1,1.13238]
[1746029104981,10.1312,1766.2,1766.1,1.13238]
[1746029105575,11.26351,1766.2,1766.1,1.13238]
[1746029106984,7.555,1766.2,1766.1,6.13238]
[1746029107184,8.6887,1766.5,1766.4,1.13218]
[1746029107481,4.9617,1766.5,1766.4,1.13218]
[1746029107682,4.9379,1766.7,1766.6,1.13206]
[1746029107885,9.79689,1766.7,1766.6,1.13206]
[1746029108075,13.62489,1766.7,1766.6,1.13206]
[1746029109880,2.83018,1766.6,1766.3,1.13219]
[1746029110086,1.13214,1766.5,1766.4,1.13213]
[1746029110282,1.7071,1766.5,1766.4,1.13213]
[1746029111191,9.79689,1766.7,1766.6,1.13206]
[1746029111486,8.6649,1766.7,1766.6,1.13206]
[1746029111686,9.79689,1766.7,1766.6,1.13206]
[1746029112090,1.13206,1766.6,1766.5,2.89377]
[1746029112281,2.75456,1766.6,1766.5,2.89377]
[1746029112481,1.6225,1766.6,1766.5,2.89377]
[1746029113190,5.4505,1766.6,1766.5,2.89377]
[1746029113387,6.58256,1766.6,1766.5,2.89377]
[1746029114787,5.4505,1766.6,1766.5,2.89377]
[1746029115387,6.58256,1766.6,1766.5,2.89377]
[1746029115795,5.4505,1766.6,1766.5,2.89377]
[1746029116087,3.828,1766.6,1766.5,2.89377]
[1746029119801,4.96006,1766.6,1766.5,1.7617]
[1746029120004,1.13212,1766.5,1766.4,1.13213]
[1746029120306,1.13218,1766.4,1766.3,1.7082]
[1746029120493,1.6499,1766.5,1766.4,1.13218]
[1746029120699,3.726,1766.5,1766.4,1.13218]
[1746029121203,7.554,1766.5,1766.4,1.13218]
[1746029121704,8.68612,1766.5,1766.4,1.13218]
[1746029121903,7.554,1766.5,1766.4,1.13218]
[1746029122303,9.1741,1766.5,1766.4,1.13218]
[1746029122599,7.554,1766.5,1766.4,1.13218]
[1746029123604,3.828,1766.5,1766.4,9.33998]
[1746029124207,3.726,1766.8,1766.7,1.13199]
[1746029124801,3.726,1766.8,1766.7,2.86109]
[1746029125203,7.554,1766.8,1766.7,2.86109]
[1746029128805,3.828,1766.8,1766.7,2.86109]
[1746029129210,5.3469,1767.1,1767.0,1.1318]
[1746029129811,5.3469,1767.1,1767.0,41.9318]
[1746029130013,5.3469,1767.1,1767.0,43.6607]
[1746029130214,9.1749,1767.1,1767.0,43.6607]
[1746029130407,7.553,1767.1,1767.0,43.6607]
[1746029131314,9.2031,1767.1,1767.0,43.6607]
[1746029136812,9.2031,1767.1,1767.0,41.9318]
[1746029137019,10.33484,1767.1,1767.0,41.9318]
[1746029137516,10.33484,1767.1,1767.0,1.1318]
[1746029138616,1.1318,1767.0,1766.9,40.8]
[1746029138813,1.13199,1766.8,1766.7,1.13196]
[1746029139114,8.68399,1766.8,1766.7,1.13196]
[1746029139519,1.13206,1766.6,1766.5,41.93209]
[1746029139713,1.683,1766.7,1766.2,6.03851]
[1746029139919,0.8295,1766.5,1766.2,7.75631]
[1746029140217,3.67178,1766.4,1766.3,41.93225]
[1746029140719,2.5396,1766.4,1766.3,41.93225]
[1746029141218,6.3676,1766.4,1766.3,41.93225]
[1746029141918,6.3676,1766.4,1766.3,43.65005]
[1746029142118,7.49978,1766.4,1766.3,43.65005]
[1746029142319,1.13225,1766.3,1766.2,1.13226]
[1746029142511,2.84845,1766.3,1766.2,1.13226]
[1746029142707,4.54685,1766.3,1766.0,4.34022]
[1746029142912,1.13238,1766.1,1766.0,41.93244]
[1746029143216,4.96038,1766.1,1766.0,1.13244]
[1746029143417,1.13245,1766.0,1765.9,1.13246]
[1746029143610,3.66005,1766.0,1765.9,41.93246]
[1746029144007,3.66005,1766.0,1765.9,1.13246]
[1746029144212,1.13251,1765.9,1765.8,1.13252]
[1746029144415,2.84871,1765.9,1765.8,1.13252]
[1746029144722,5.4412,1765.9,1765.8,1.13252]
[1746029145109,9.2692,1765.9,1765.8,1.13252]
[1746029145420,9.2692,1765.9,1765.8,2.78632]
[1746029145614,9.2692,1765.9,1765.7,0.53217]
[1746029145808,1.637,1765.8,1765.7,1.6648]
[1746029146214,5.465,1765.8,1765.7,1.6648]
[1746029147108,5.465,1765.8,1765.7,3.3186]
[1746029147618,3.828,1765.8,1765.7,3.3186]
[1746029151617,3.828,1765.8,1765.7,1.6648]
[1746029151825,5.5102,1765.8,1765.7,1.6648]
[1746029152129,6.64277,1765.8,1765.7,1.6648]
[1746029152324,6.64277,1765.8,1765.7,0.53217]
[1746029152524,11.64277,1765.8,1765.7,0.53217]
[1746029152718,6.64277,1765.8,1765.7,0.53217]
[1746029152914,6.64277,1765.8,1765.7,1.6648]
[1746029153121,5.5102,1765.8,1765.7,1.6648]
[1746029153518,3.828,1765.8,1765.7,1.6648]
[1746029154124,3.828,1765.8,1765.7,3.3249]
[1746029156019,5.542,1765.8,1765.7,1.6648]
[1746029157713,6.67457,1765.8,1765.7,1.6648]
[1746029158122,5.542,1765.8,1765.7,1.6648]
[1746029159828,3.828,1765.8,1765.7,1.6648]
[1746029160126,3.828,1765.8,1765.7,3.3227]
[1746029160325,3.828,1765.8,1765.7,5.0419]
[1746029161222,3.828,1765.8,1765.7,3.384]
[1746029161416,5.4237,1765.8,1765.7,3.384]
[1746029161934,6.2223,1765.8,1765.7,3.384]
[1746029163318,6.2223,1765.8,1765.7,1.13263]
[1746029164123,6.2223,1765.8,1765.7,2.73553]
[1746029166930,3.828,1765.8,1765.7,2.73553]